bitfinex/quotes_ETHUSD_20241023
["timestamp","ask_amount","ask_price","bid_price","bid_amount"]
[1729673400100,0.53099304,2585.1,2583.9,3.48308]
[1729673400255,0.06730121,2585.9,2585.6,3.48078]
[1729673400468,0.57358265,2586.0,2585.6,4.29974]
[1729673400674,0.8227,2586.4,2585.7,4.34119979]
[1729673400888,3.50685801,2586.3,2585.7,1.51060003]
[1729673401071,0.7795,2586.2,2585.3,4.24513]
[1729673401286,3.48042,2585.9,2585.3,4.24513]
[1729673401798,3.48056,2585.8,2585.3,4.24513]
[1729673402008,3.48044,2585.9,2585.3,4.24513]
[1729673402358,3.48056,2585.8,2585.3,0.764]
[1729673402605,3.50685801,2585.6,2585.0,0.7581]
[1729673402756,3.48089,2585.6,2585.0,0.7581]
[1729673402961,3.48103,2585.5,2585.0,0.7581]
[1729673403712,6.49031,2586.0,2585.0,0.7581]
[1729673404001,3.48117,2585.4,2585.0,0.7581]
[1729673404505,6.96237,2585.4,2585.0,0.7581]
[1729673404861,3.48126,2585.3,2585.0,0.7581]
[1729673405264,3.47998,2586.3,2585.5,0.7624]
[1729673405481,3.47998,2586.3,2585.6,3.48081]
[1729673405810,3.48016,2586.1,2585.6,3.48081]
[1729673406199,3.48008,2586.2,2585.6,3.48081]
[1729673406504,3.48008,2586.2,2585.6,6.96155]
[1729673406680,0.7663,2586.5,2585.5,0.7624]
[1729673406880,0.7663,2586.5,2585.5,4.24335]
[1729673406881,3.48024,2586.1,2585.5,4.24335]
[1729673407185,3.48,2586.2,2585.6,3.48069]
[1729673407813,3.47995,2586.3,2585.7,3.48067]
[1729673408102,3.47995,2586.3,2585.6,3.48069]
[1729673408103,3.48034,2586.0,2585.5,0.7624]
[1729673408440,3.48064,2585.8,2585.5,0.7624]
[1729673408704,3.48064,2585.8,2585.3,0.8005]
[1729673409073,3.48064,2585.8,2585.3,4.28171]
[1729673409424,3.48064,2585.8,2585.3,0.8005]
[1729673409962,3.4803,2586.0,2585.3,4.28164]
[1729673409963,3.48044,2585.9,2585.3,4.28164]
[1729673410114,3.48004,2586.2,2585.4,0.07735423]
[1729673410319,3.48004,2586.2,2585.7,0.8276]
[1729673410872,3.48021,2586.1,2585.7,0.8276]
[1729673411340,3.48028,2586.0,2585.7,0.8276]
[1729673412002,3.48054,2585.8,2585.4,0.7809]
[1729673413431,3.4807,2585.7,2585.4,0.7809]
[1729673417039,3.48069,2585.7,2585.4,0.7809]
[1729673417399,6.96119,2585.8,2585.4,0.7809]
[1729673417606,6.96117,2585.8,2585.4,0.7809]
[1729673417941,3.48068,2585.7,2585.4,0.7809]
[1729673419061,3.48089,2585.6,2585.4,0.7809]
[1729673419349,3.48068,2585.7,2585.4,0.7809]
[1729673420207,0.7961,2586.0,2585.4,0.7809]
[1729673420408,0.7961,2586.0,2584.4,0.7739]
[1729673420409,3.48187,2584.9,2584.4,0.7739]
[1729673420733,3.48218,2584.6,2584.4,0.7739]
[1729673420932,3.48189,2584.8,2584.4,0.7739]
[1729673421338,3.48202,2584.7,2584.4,0.7739]
[1729673421540,3.48258,2584.3,2584.1,0.7656]
[1729673421740,3.48258,2584.3,2583.7,4.27439519]
[1729673421741,3.48258,2584.3,2583.8,0.7656]
[1729673422247,3.48279,2584.2,2583.6,0.1261919]
[1729673422612,3.48291,2584.1,2583.6,0.1261919]
[1729673422826,3.48279,2584.2,2583.6,3.6096319]
[1729673423611,3.48252,2584.4,2583.6,0.91207109]
[1729673423812,3.48181,2584.9,2584.1,3.48283]
[1729673424012,3.48181,2584.9,2584.5,0.7984]
[1729673424313,3.48155,2585.1,2584.5,0.7984]
[1729673424314,3.48163,2585.0,2584.5,0.7984]
[1729673424512,3.50685801,2585.3,2584.6,3.48213]
[1729673424513,6.96261,2585.3,2584.6,3.48213]
[1729673424746,3.48136,2585.2,2584.6,3.48208]
[1729673425060,3.48127,2585.3,2584.7,3.48195]
[1729673425262,6.9626,2585.3,2584.7,3.48195]
[1729673425561,6.9626,2585.3,2584.6,3.910128]
[1729673425562,3.48138,2585.2,2584.6,3.910128]
[1729673425760,3.48127,2585.3,2584.6,3.910128]
[1729673425913,3.48127,2585.3,2584.7,3.9528728]
[1729673426113,3.48136,2585.2,2584.7,3.9528728]
[1729673426531,3.4805,2585.9,2585.1,3.48148]
[1729673426733,3.48102,2585.5,2585.2,0.8192]
[1729673427665,3.48083,2585.6,2585.2,0.8192]
[1729673428431,3.48096,2585.5,2585.2,0.8192]
[1729673429062,4.48626334,2585.8,2585.2,0.8192]
[1729673429063,3.48063,2585.8,2585.2,0.8192]
[1729673429244,3.0,2586.0,2585.2,0.8192]
[1729673429563,3.48096,2585.5,2585.2,0.8192]
[1729673429867,3.48122,2585.3,2584.8,0.7898]
[1729673430220,6.96209,2585.5,2584.9,3.48174]
[1729673430459,3.48103,2585.5,2584.9,6.96348]
[1729673430617,3.48103,2585.5,2584.9,3.48174]
[1729673431021,6.96207,2585.5,2584.9,3.48174]
[1729673431271,3.48103,2585.5,2584.9,3.48174]
[1729673431427,6.96209,2585.5,2584.9,4.30754096]
[1729673431626,3.48103,2585.5,2584.9,4.30754096]
[1729673431949,3.47963139,2585.4,2584.8,1.216974]
[1729673432668,3.47963139,2585.4,2584.8,4.698844]
[1729673433378,3.48081,2585.6,2584.8,0.7898]
[1729673433686,3.48144,2585.2,2584.8,0.7898]
[1729673434027,3.48116,2585.4,2584.8,4.27166]
[1729673434941,3.48106,2585.5,2584.8,4.27166]
[1729673435167,3.48122,2585.3,2584.8,4.27166]
[1729673436029,3.48122,2585.3,2584.8,7.75345]
[1729673436266,3.48122,2585.3,2584.8,4.27159]
[1729673437269,3.48109,2585.4,2584.9,3.48173]
[1729673437591,3.48124,2585.3,2584.8,4.27159]
[1729673438359,3.48106,2585.5,2584.8,4.27159]
[1729673438555,3.48109,2585.4,2584.8,4.27159]
[1729673438754,3.48109,2585.4,2584.8,7.7534]
[1729673438955,3.48109,2585.4,2584.9,3.48168]
[1729673439203,3.48106,2585.5,2584.9,3.48168]
[1729673439417,3.48109,2585.4,2584.9,3.48168]
[1729673440789,3.48109,2585.4,2584.8,4.27159]
[1729673440998,3.48123,2585.3,2584.8,4.27159]
[1729673442558,3.48109,2585.4,2584.8,4.27159]
[1729673442872,3.48124,2585.3,2584.8,4.27159]
[1729673443501,3.48155,2585.1,2584.8,0.7898]
[1729673443673,4.48626334,2585.5,2584.8,0.7898]
[1729673443674,3.48137,2585.2,2584.8,0.7898]
[1729673444678,3.4813,2585.3,2584.8,0.7898]
[1729673445415,3.48142,2585.2,2584.8,0.7898]
[1729673445578,3.48149,2585.1,2584.8,0.7898]
[1729673445931,3.48164,2585.0,2584.8,0.7898]
[1729673446425,3.48164,2585.0,2584.5,0.7751]
[1729673446426,3.48175,2584.9,2584.5,0.7751]
[1729673447397,3.482,2584.8,2584.5,0.7751]
[1729673447722,4.27286465,2585.2,2584.5,0.7751]
[1729673447723,3.48164,2585.0,2584.5,0.7751]
[1729673447880,7.75423465,2585.2,2584.5,0.7751]
[1729673448080,3.48174,2585.0,2584.5,0.7751]
[1729673448290,6.96348,2585.0,2584.5,0.7751]
[1729673448494,3.48178,2584.9,2584.5,0.7751]
[1729673448719,3.48174,2585.0,2584.5,0.7751]
[1729673448942,6.96344,2585.0,2584.5,0.7751]
[1729673449308,6.96342,2585.0,2584.5,4.25739]
[1729673449639,3.4817,2585.0,2584.5,4.25738]
[1729673450197,3.48177,2584.9,2584.5,4.25738]
[1729673450449,3.48203,2584.7,2584.5,0.7751]
[1729673450742,3.48203,2584.7,2584.1,0.80405232]
[1729673450743,3.48238,2584.5,2584.1,0.8142]
[1729673450927,3.48253,2584.4,2584.1,0.8142]
[1729673451449,3.48262,2584.3,2584.1,0.8142]
[1729673451942,3.4824,2584.5,2584.1,0.8142]
[1729673452745,3.48229,2584.5,2584.1,0.8142]
[1729673452949,4.23245,2584.8,2584.2,3.4827]
[1729673453104,3.48195,2584.8,2584.4,0.7934]
[1729673453308,3.48203,2584.7,2584.4,0.7934]
[1729673453622,3.48188,2584.9,2584.4,0.7934]
[1729673453947,6.96344,2585.0,2584.4,4.27581]
[1729673454108,3.4817,2585.0,2584.4,4.7463]
[1729673454442,6.96345,2585.0,2584.4,4.74628]
[1729673454603,3.48186,2584.9,2584.4,4.74628]
[1729673454806,3.48191,2584.8,2584.4,1.26395]
[1729673455154,3.48191,2584.8,2584.4,0.7934]
[1729673455358,3.48191,2584.8,2584.4,4.27582]
[1729673456312,3.48191,2584.8,2584.4,0.7934]
[1729673456652,3.4817,2585.0,2584.4,0.7934]
[1729673456809,6.9634,2585.0,2584.4,4.27571]
[1729673457254,3.48183,2584.9,2584.4,4.27571]
[1729673457835,3.4817,2585.0,2584.4,4.27571]
[1729673458010,6.96391,2584.8,2584.4,0.7934]
[1729673458440,3.4819,2584.8,2584.4,0.7934]
[1729673458750,3.4819,2584.8,2584.4,4.27581]
[1729673458968,3.4819,2584.8,2584.4,5.051653]
[1729673459330,6.96391,2584.8,2584.4,0.7934]
[1729673459547,3.4819,2584.8,2584.4,0.7934]
[1729673459868,4.24843,2584.7,2584.1,3.48277]
[1729673460375,3.48213,2584.7,2584.3,0.8033]
[1729673460569,3.48212,2584.7,2584.3,0.8033]
[1729673460777,3.4824,2584.5,2584.3,0.8033]
[1729673461070,3.48258,2584.3,2583.7,3.48329]
[1729673461252,3.48258,2584.3,2584.0,0.8033]
[1729673462130,3.4825,2584.4,2584.0,0.8033]
[1729673462871,6.96501,2584.4,2584.0,0.8033]
[1729673463055,3.48257,2584.3,2584.0,0.8033]
[1729673463457,3.48224,2584.6,2584.0,0.8033]
[1729673463658,3.48245,2584.4,2584.0,0.8033]
[1729673463844,3.48231,2584.5,2584.0,4.28618]
[1729673464049,3.48231,2584.5,2584.0,5.0708373]
[1729673464443,3.48224,2584.6,2584.0,5.0708373]
[1729673464444,3.50556465,2584.8,2584.0,1.5879573]
[1729673464653,0.76,2584.5,2583.9,3.48304]
[1729673464838,3.48256,2584.4,2583.9,3.48304]
[1729673465383,3.48256,2584.3,2583.9,3.48304]
[1729673465678,0.76,2584.5,2583.7,0.788]
[1729673465679,3.48321,2583.9,2583.7,0.788]
[1729673465844,3.48298,2584.0,2583.7,0.788]
[1729673466362,3.48324,2583.8,2583.6,0.1261919]
[1729673466766,3.48325,2583.8,2583.6,0.1261919]
[1729673466986,6.96657,2583.8,2583.6,0.1261919]
[1729673467436,3.48337,2583.7,2583.6,0.1261919]
[1729673469350,4.26537,2583.7,2583.6,0.1261919]
[1729673479218,7.26537,2583.7,2583.6,0.1261919]
[1729673479591,7.27537,2583.7,2583.6,0.1261919]
[1729673481730,7.27537,2583.7,2583.1,3.33e-06]
[1729673481731,3.48405,2583.2,2583.1,3.33e-06]
[1729673481876,14.2626793,2583.2,2583.1,3.33e-06]
[1729673482224,10.75711465,2583.2,2583.1,3.33e-06]
[1729673482576,7.25155,2583.2,2583.1,3.33e-06]
[1729673482775,3.48391,2583.3,2583.1,3.33e-06]
[1729673483224,3.48405,2583.2,2583.1,3.33e-06]
[1729673483723,6.98947465,2583.3,2583.1,3.33e-06]
[1729673483928,6.98924465,2583.5,2583.1,3.33e-06]
[1729673484578,3.50556465,2583.5,2583.1,3.48418333]
[1729673484781,3.48354,2583.6,2583.1,3.48418333]
[1729673484782,6.98902465,2583.7,2583.2,0.7987]
[1729673485013,3.48352,2583.6,2583.2,0.7987]
[1729673485822,3.48372,2583.5,2583.2,0.7987]
[1729673486208,6.96715,2583.6,2583.2,0.7987]
[1729673486517,3.48352,2583.6,2583.2,0.7987]
[1729673486878,3.50556465,2583.7,2583.2,5.01101033]
[1729673487078,6.98900465,2583.7,2583.2,1.52698033]
[1729673487278,6.98877465,2583.9,2583.3,3.48384]
[1729673487480,6.98895465,2583.7,2583.2,5.01093033]
[1729673487701,6.98895465,2583.7,2583.2,1.52698033]
[1729673488021,6.98895465,2583.7,2583.1,0.77320333]
[1729673488022,6.98925465,2583.5,2583.1,0.77320333]
[1729673488185,3.50556465,2583.5,2583.1,4.25737333]
[1729673488879,3.48364,2583.6,2583.1,4.25737333]
[1729673489482,3.48338,2583.7,2583.2,3.48404]
[1729673489707,3.48337,2583.7,2583.2,5.32657133]
[1729673490224,3.48306,2584.0,2583.3,3.48388]
[1729673490426,0.8063,2584.7,2583.9,0.7684]
[1729673490624,4.08746636,2584.9,2584.3,3.48245]
[1729673490794,0.60570636,2584.9,2584.4,3.48234]
[1729673491137,0.60570636,2584.9,2584.5,4.28088]
[1729673491336,0.60570636,2584.9,2583.7,0.52306082]
[1729673491337,6.98761465,2584.7,2584.2,0.7986]
[1729673491519,3.48218,2584.6,2584.2,0.7986]
[1729673491827,6.98761465,2584.7,2584.2,0.7986]
[1729673492127,6.98761465,2584.7,2584.2,4.28125]
[1729673492485,3.50556465,2584.7,2584.2,4.28125]
[1729673492701,3.48183,2584.9,2584.2,4.28125]
[1729673492702,3.0,2584.8,2584.3,3.48254]
[1729673493296,0.8063,2585.1,2584.3,0.776379]
[1729673493297,6.98712465,2585.1,2584.3,0.776379]
[1729673493539,6.98733465,2584.9,2584.4,4.30118]
[1729673493693,10.46916465,2584.9,2584.4,4.30118]
[1729673493893,10.46918465,2584.9,2584.4,4.30118]
[1729673494140,6.98733465,2584.9,2584.4,0.8188]
[1729673494441,6.98712465,2585.1,2584.4,4.30112]
[1729673494646,3.48148,2585.2,2584.6,3.48206]
[1729673494938,3.50556465,2585.1,2584.4,4.30115]
[1729673495114,6.98705465,2585.1,2584.4,4.30114]
[1729673495497,6.98705465,2585.1,2584.6,3.48213]
[1729673495697,6.98705465,2585.1,2584.6,6.96421]
[1729673495938,3.50556465,2584.8,2584.4,0.8188]
[1729673496143,3.48212,2584.7,2584.4,0.8188]
[1729673496342,3.48225,2584.6,2584.4,0.8188]
[1729673497103,3.50556465,2584.8,2584.4,0.8188]
[1729673497905,6.9637,2584.9,2584.4,0.8188]
[1729673498232,6.48173,2585.0,2584.5,3.48222]
[1729673498544,3.0,2585.0,2584.5,6.96444]
[1729673498707,3.0,2585.0,2584.5,3.48222]
[1729673499133,3.0,2585.0,2584.4,0.8188]
[1729673499134,3.48177,2584.9,2584.4,0.8188]
[1729673499741,3.48177,2584.9,2584.0,4.26532]
[1729673499742,3.48222,2584.6,2584.0,4.26532]
[1729673500244,3.48256,2584.3,2584.0,0.7824]
[1729673500550,3.48272,2584.2,2584.0,0.7824]
[1729673500699,3.48324,2583.8,2583.7,0.7836]
[1729673500903,3.48324,2583.8,2583.1,3.48406333]
[1729673500904,3.48366,2583.5,2583.3,0.7836]
[1729673501258,3.48405,2583.2,2583.1,3.33e-06]
[1729673501404,3.48405,2583.2,2583.1,3.32000333]
[1729673501604,3.48392,2583.3,2583.1,3.32000333]
[1729673501902,3.48373,2583.5,2583.1,3.33e-06]
[1729673502108,6.96749,2583.5,2583.1,3.33e-06]
[1729673502333,3.48373,2583.5,2583.1,3.33e-06]
[1729673502536,3.48379,2583.4,2583.1,3.33e-06]
[1729673503306,0.7871,2583.7,2583.1,3.33e-06]
[1729673503504,3.48399,2583.3,2583.1,3.33e-06]
[1729673504048,6.96749,2583.5,2583.1,3.33e-06]
[1729673504205,3.48385,2583.4,2583.1,3.33e-06]
[1729673504648,3.48405,2583.2,2583.1,3.33e-06]
[1729673505518,6.96774,2583.4,2583.1,3.33e-06]
[1729673505849,3.48392,2583.3,2583.1,3.33e-06]
[1729673506207,3.48385,2583.4,2583.1,3.33e-06]
[1729673506412,3.48405,2583.2,2583.1,3.33e-06]
[1729673506632,7.80031465,2583.2,2583.1,3.33e-06]
[1729673506950,7.29475,2583.2,2583.1,3.33e-06]
[1729673507157,10.80031465,2583.2,2583.1,3.33e-06]
[1729673508932,3.48392,2583.3,2583.1,3.33e-06]
[1729673509136,6.96791,2583.3,2583.1,3.33e-06]
[1729673509302,3.48392,2583.3,2583.1,3.33e-06]
[1729673509507,3.48371,2583.5,2583.1,1.08480366]
[1729673510016,3.48346,2583.7,2583.2,3.48402]
[1729673510347,3.48353,2583.6,2583.1,1.08480366]
[1729673510654,3.48364,2583.5,2583.1,0.78480333]
[1729673511012,3.48353,2583.6,2583.1,0.78480333]
[1729673511353,6.96713,2583.6,2583.1,0.78480333]
[1729673511939,3.50556465,2583.8,2583.1,0.78480333]
[1729673511940,3.48399,2583.3,2583.1,0.78480333]
[1729673512130,3.48405,2583.2,2583.1,3.33e-06]
[1729673512772,3.48393,2583.3,2583.1,3.33e-06]
[1729673513474,3.48373,2583.5,2583.1,3.33e-06]
[1729673513778,3.48402,2583.3,2583.1,3.33e-06]
[1729673513938,6.96806,2583.3,2583.1,3.33e-06]
[1729673514269,3.48402,2583.3,2583.1,3.33e-06]
[1729673514476,3.48405,2583.2,2583.1,3.33e-06]
[1729673514683,6.98961465,2583.2,2583.1,3.33e-06]
[1729673516648,3.48405,2583.2,2583.1,3.33e-06]
[1729673516847,3.48402,2583.3,2583.1,3.33e-06]
[1729673517242,3.4839,2583.4,2583.1,3.33e-06]
[1729673517465,3.48405,2583.2,2583.1,3.33e-06]
[1729673518251,3.48393,2583.3,2583.1,3.33e-06]
[1729673519158,3.48392,2583.3,2583.1,3.33e-06]
[1729673519356,6.9679,2583.3,2583.1,3.33e-06]
[1729673519556,3.48392,2583.3,2583.1,3.33e-06]
[1729673520262,3.0,2583.7,2583.1,3.33e-06]
[1729673520563,3.48402,2583.3,2583.1,3.33e-06]
[1729673520948,4.23945,2583.2,2583.1,3.33e-06]
[1729673521153,7.23945,2583.2,2583.1,3.33e-06]
[1729673522488,10.74501465,2583.2,2583.1,3.33e-06]
[1729673525289,14.3134793,2583.2,2583.1,3.33e-06]
[1729673525586,14.3134793,2583.2,2583.0,1.06427333]
[1729673525587,7.29248,2583.1,2583.0,1.06427333]
[1729673530765,10.79804465,2583.1,2583.0,1.06427333]
[1729673530973,7.29248,2583.1,2583.0,1.06427333]
[1729673531859,10.79804465,2583.1,2583.0,1.06427333]
[1729673533003,7.29248,2583.1,2583.0,1.06427333]
[1729673533498,7.29248,2583.1,2582.5,3.0]
[1729673533670,6.99042465,2582.6,2582.5,3.0]
[1729673537758,10.76892465,2582.6,2582.5,3.0]
[1729673537962,10.76892465,2582.6,2582.5,2.5]
[1729673538702,11.12605347,2582.6,2582.5,2.5]
[1729673539712,10.34755347,2582.6,2582.5,2.5]
[1729673541120,9.99042465,2582.6,2582.5,2.5]
[1729673541265,11.17520024,2582.6,2582.5,2.5]
[1729673542211,10.34790024,2582.6,2582.5,2.5]
[1729673542983,7.34790024,2582.6,2582.5,2.5]
[1729673543511,11.12750024,2582.6,2582.5,2.5]
[1729673543713,11.48386357,2582.6,2582.5,2.5]
[1729673545236,10.70426357,2582.6,2582.5,2.5]
[1729673546575,4.19869892,2582.6,2582.5,2.5]
[1729673546779,3.84233559,2582.6,2582.5,2.5]
[1729673547977,4.1996184,2582.6,2582.5,2.5]
[1729673548321,4.20005334,2582.6,2582.5,2.5]
[1729673549736,7.20005334,2582.6,2582.5,2.5]
[1729673550733,6.84214281,2582.6,2582.5,2.5]
[1729673551747,6.48486,2582.6,2582.5,2.5]
[1729673551897,6.84213036,2582.6,2582.5,2.5]
[1729673552099,7.60543036,2582.6,2582.5,2.5]
[1729673553745,3.48526,2582.3,2582.2,0.05833333]
[1729673553929,7.34809501,2582.3,2582.2,0.05833333]
[1729673555297,9.99082465,2582.3,2582.2,0.05833333]
[1729673555496,7.34804057,2582.3,2582.2,0.05833333]
[1729673557118,8.17154057,2582.3,2582.2,0.05833333]
[1729673558823,11.17154057,2582.3,2582.2,0.05833333]
[1729673559164,11.17175173,2582.3,2582.2,0.05833333]
[1729673559508,10.34825173,2582.3,2582.2,0.05833333]
[1729673561411,6.84268708,2582.3,2582.2,0.05833333]
[1729673561617,10.34825173,2582.3,2582.2,0.05833333]
[1729673562152,3.84268708,2582.3,2582.2,0.05833333]
[1729673562314,0.35742708,2582.3,2582.2,0.05833333]
[1729673562517,3.84268708,2582.3,2582.2,0.83663333]
[1729673562770,3.84268708,2582.3,2582.2,1.22166233]
[1729673562771,0.35742708,2582.3,2582.2,1.22166233]
[1729673562928,0.60620318,2582.8,2582.5,0.8286]
[1729673563253,3.48434,2583.0,2582.5,4.39099886]
[1729673563451,3.48425,2583.1,2582.6,0.8286]
[1729673563452,3.48446,2582.9,2582.6,0.8286]
[1729673563653,6.96898,2582.9,2582.6,0.8286]
[1729673563861,3.48446,2582.9,2582.6,0.8286]
[1729673564071,3.48446,2582.9,2582.6,1.50376102]
[1729673564378,0.35734253,2582.9,2582.6,1.50376102]
[1729673564679,0.60609466,2583.6,2583.1,3.48406]
[1729673564886,3.4839,2583.4,2583.3,0.8172]
[1729673565381,6.98946465,2583.4,2583.3,0.8172]
[1729673565537,6.98946465,2583.4,2582.7,0.8172]
[1729673565738,4.2578,2583.7,2582.7,1.3149291]
[1729673565739,3.4844,2583.0,2582.7,1.3149291]
[1729673566474,3.4844,2583.0,2582.7,0.8172]
[1729673566648,3.50556465,2583.2,2582.7,0.8172]
[1729673566979,3.48459,2582.8,2582.7,0.8172]
[1729673567273,3.48446,2582.9,2582.5,0.7697]
[1729673567440,3.48486,2582.6,2582.5,0.7697]
[1729673568834,0.35732635,2582.6,2582.5,0.7697]
[1729673569271,3.48448,2582.9,2582.5,1.195186]
[1729673569562,3.84177962,2582.8,2582.5,1.195186]
[1729673569740,0.35716962,2582.7,2582.5,1.195186]
[1729673569948,6.98983465,2583.1,2582.5,1.195186]
[1729673570137,0.35716173,2583.0,2582.6,0.7846]
[1729673570333,6.98983465,2583.1,2582.6,0.7846]
[1729673570334,3.84170173,2582.9,2582.6,0.7846]
[1729673570640,0.35716173,2582.8,2582.6,0.7846]
[1729673570944,3.48454,2582.9,2582.3,3.48513]
[1729673571139,0.35714741,2582.8,2582.4,0.39284923]
[1729673571346,3.48453,2582.9,2582.4,0.39284923]
[1729673571587,0.35709193,2582.8,2582.4,0.39284923]
[1729673571893,6.96909,2582.9,2582.4,0.39284923]
[1729673572051,3.48473,2582.7,2582.2,0.44336233]
[1729673572250,3.50556465,2582.9,2582.2,0.05833333]
[1729673572455,3.48515,2582.4,2582.2,0.05833333]
[1729673572876,0.3569863,2582.3,2582.2,0.05833333]
[1729673573544,3.48453,2582.9,2582.2,0.05833333]
[1729673573780,6.50556465,2583.2,2582.2,0.05833333]
[1729673573781,0.35705859,2582.8,2582.2,0.05833333]
[1729673573981,3.48434,2583.0,2582.3,0.8241]
[1729673574151,6.48414,2583.2,2582.2,0.05833333]
[1729673574152,0.35708906,2582.9,2582.6,0.8241]
[1729673574362,3.48388,2583.4,2582.8,4.30869]
[1729673574586,0.35698527,2583.3,2582.8,1.61118768]
[1729673574790,3.84104527,2583.2,2582.8,1.61118768]
[1729673574989,3.48393,2583.3,2582.8,5.17318417]
[1729673575323,3.48393,2583.3,2582.8,8.58027768]
[1729673575324,0.35698603,2583.2,2582.8,8.58027768]
[1729673575462,3.48388,2583.4,2582.8,5.09570768]
[1729673575671,0.35686525,2583.3,2583.0,0.7575]
[1729673575972,3.48388,2583.4,2583.0,0.7575]
[1729673576180,0.35685911,2583.3,2583.0,0.7575]
[1729673576363,3.48356,2583.6,2582.9,3.99399077]
[1729673576570,3.48332,2583.8,2583.2,0.828]
[1729673576763,0.35677615,2583.7,2583.3,3.915107]
[1729673577063,3.48332,2583.8,2583.3,3.915107]
[1729673577269,3.48306,2584.0,2583.4,4.27397]
[1729673577270,3.48314,2583.9,2583.4,4.27397]
[1729673578097,3.48306,2584.0,2583.4,7.75755]
[1729673578256,6.96556,2584.2,2583.5,1.71498127]
[1729673578451,0.60603112,2584.5,2583.8,4.25675]
[1729673578657,3.50556465,2584.2,2583.6,0.7736]
[1729673578961,3.4828,2584.2,2583.7,3.48335]
[1729673579184,3.48262,2584.3,2583.7,3.91667071]
[1729673579383,3.48248,2584.4,2583.8,0.7619]
[1729673579584,3.48248,2584.4,2583.9,3.483]
[1729673579785,3.48224,2584.6,2584.1,3.48277]
[1729673580021,3.48196,2584.8,2584.2,3.48268]
[1729673580175,3.48211,2584.7,2584.2,3.48268]
[1729673580375,3.48211,2584.7,2584.0,4.24477]
[1729673580376,3.48231,2584.5,2584.0,4.24474]
[1729673580607,3.48231,2584.5,2584.0,5.017531]
[1729673581117,3.48231,2584.5,2584.0,1.534691]
[1729673581314,3.48245,2584.4,2584.0,1.534691]
[1729673581713,3.48224,2584.6,2584.0,5.017661]
[1729673582029,3.48224,2584.6,2584.0,1.534691]
[1729673582030,3.48239,2584.5,2584.0,1.534691]
[1729673582312,3.48229,2584.5,2584.0,1.534691]
[1729673583077,3.48224,2584.6,2584.0,5.017631]
[1729673583279,3.50556465,2584.6,2584.0,0.7619]
[1729673583474,3.48242,2584.5,2584.0,0.7619]
[1729673583884,3.48243,2584.4,2584.0,0.7619]
[1729673584388,3.48282,2584.2,2584.0,0.7619]
[1729673584977,3.48196,2584.8,2584.1,0.7773]
[1729673585418,3.48215,2584.7,2584.1,4.26012]
[1729673585602,3.48215,2584.7,2584.1,4.686139]
[1729673586123,6.96393,2584.8,2584.2,3.48266]
[1729673586329,3.50556465,2585.0,2584.4,3.48241]
[1729673586510,3.48171,2585.0,2584.5,3.48228]
[1729673586710,3.48171,2585.0,2584.6,0.758]
[1729673587017,6.96289,2585.2,2584.6,4.24015]
[1729673587226,3.48143,2585.2,2584.6,4.24015]
[1729673587517,3.48162,2585.0,2584.6,0.758]
[1729673587725,10.46844465,2585.2,2584.6,4.24015]
[1729673588029,3.4816,2585.1,2584.6,4.24015]
[1729673588882,3.48164,2585.0,2584.6,0.758]
[1729673590399,3.50556465,2585.2,2584.6,1.530256]
[1729673590603,3.48119,2585.4,2584.9,3.48165]
[1729673591290,3.4813,2585.3,2584.8,0.755]
[1729673591485,3.48116,2585.4,2584.8,4.23686]
[1729673591683,3.48116,2585.4,2584.8,5.009742]
[1729673592092,3.48116,2585.4,2584.9,3.48175]
[1729673592501,3.48096,2585.5,2585.1,0.8298]
[1729673592709,6.98645465,2585.6,2585.1,0.8298]
[1729673592710,3.48108,2585.4,2585.1,0.8298]
[1729673592922,6.98664465,2585.4,2585.1,0.8298]
[1729673593112,3.48135,2585.2,2585.1,0.8298]
[1729673593316,3.48135,2585.2,2584.8,0.8298]
[1729673593317,3.50556465,2585.2,2584.8,0.8298]
[1729673593540,3.48175,2584.9,2584.8,0.8298]
[1729673594049,3.48164,2585.0,2584.8,0.8298]
[1729673594207,3.48159,2585.1,2584.8,0.8298]
[1729673595946,3.48157,2585.1,2584.8,0.8298]
[1729673596447,3.48171,2585.0,2584.8,0.8298]
[1729673596602,3.48157,2585.1,2584.8,0.8298]
[1729673597743,3.48124,2585.3,2584.8,4.31168]
[1729673598529,3.48124,2585.3,2584.9,0.07736428]
[1729673598730,3.48124,2585.3,2584.8,5.091053]
[1729673599041,3.48104,2585.5,2584.9,3.55908428]
[1729673599248,3.48104,2585.5,2585.0,0.7886]
[1729673599565,3.4813,2585.3,2585.0,0.7886]
[1729673600267,3.48115,2585.4,2585.0,1.64949652]
[1729673600444,3.48115,2585.4,2585.0,0.7886]
[1729673600971,3.50556465,2585.6,2585.0,0.7886]
[1729673600972,3.48131,2585.3,2585.0,0.7886]
[1729673601171,3.48136,2585.2,2585.0,0.7886]
[1729673602572,6.96236,2585.4,2585.0,0.7886]
[1729673603076,3.48118,2585.4,2585.0,0.7886]
[1729673603537,3.48116,2585.4,2585.0,0.7886]
[1729673603740,3.48142,2585.2,2585.0,0.7886]
[1729673603941,6.96235,2585.4,2585.0,0.7886]
[1729673604131,3.48116,2585.4,2585.0,1.215649]
[1729673604335,3.4809,2585.6,2585.1,3.48147]
[1729673604778,3.4809,2585.6,2585.0,4.697139]
[1729673604938,6.96182,2585.6,2585.0,4.697139]
[1729673605501,3.50556465,2585.8,2585.0,4.697139]
[1729673605502,3.48096,2585.5,2585.0,4.697139]
[1729673605706,3.48096,2585.5,2585.1,0.4697139]
[1729673606194,3.4807,2585.7,2585.1,3.9511139]
[1729673606774,3.48089,2585.6,2585.2,0.8062]
[1729673607201,3.48104,2585.5,2585.2,0.8062]
[1729673607408,3.48122,2585.3,2585.2,0.8062]
[1729673607619,3.48161,2585.1,2585.0,0.8062]
[1729673607912,3.48212,2584.7,2584.2,0.7883]
[1729673608082,3.50556465,2584.9,2584.3,0.427105]
[1729673608406,3.48167,2585.0,2584.2,0.7883]